Workbook

Sheet LNB-FGR TCI
B1: Table 3-10. UAF - Capital Costs for LNB/FGR on
B2: the Mid-sized Diesel Boiler (EU ID 3)
B4: Total Capital Investment Determination - Low NOX Burners & FGR | J4: Date: | K4: 2016-04-12
B5: Project: | D5: UAF PM2.5 BACT Analysis - Zurn Boiler #3 (EU ID 3) | J5: Prepared By: | K5: L. Pacini
J6: Checked By: | K6: J. Rubino
J7: Rev: | K7: C
B8: Capital Costs
B9: DIRECT COSTS | E9: QTY | F9: UNIT | G9: UNIT COST | H9: TOTAL MATERIALS COST | I9: TOTAL LABOR COST
B11: (1) | C11: Purchased equipment and material costs
C12: (a) | D12: Basic equipment
D13: Low NOx Burner | E13: 1 | F13: EA | G13: 419484 | H13: =E13*G13 -> 419484
D14: FGR FD Fans | E14: 1 | F14: EA | G14: 198872 | H14: =E14*G14 -> 198872 | J14: TOTAL = | K14: =SUM(H13:H14) -> 618356
D15: (from Indeck)
C16: (b) | D16: Instrumentation
D17: Total Instrumentation | F17: EA | H17: =E17*G17 -> 0 | I17: Included in above price
J18: TOTAL = | K18: =SUM(H17:H17) -> 0
C19: (c) | D19: Freight
F20: % MATL COST | G20: 0.1 | I20: =G20*K14 -> 61835.6
J21: TOTAL = | K21: =SUM(I20:I20) -> 61835.6
C22: (d) | D22: Labor
D23: Labor - offsite fab | E23: 0 | F23: MH | H23: None required | I23: =E23*G23 -> 0
D24: Labor - onsite | E24: 30 | F24: MH | G24: 105 | I24: =E24*G24 -> 3150
D25: (from Indeck) | J25: TOTAL = | K25: =SUM(I23:I24) -> 3150
C26: (e) | D26: Vendor representatives fees
D27: Fab Site Vendor Representatives fees | E27: 0 | F27: MH | H27: None required | I27: =G27*E27 -> 0
D28: Onsite Vendor Representatives fees | E28: 46 | F28: MH | G28: 223.7 | I28: =G28*E28 -> 10290.2
D29: Onsite Vendor Representatives Travel & Expenses | E29: 1 | F29: EA | G29: =E29*3500 -> 3500 | H29: =E29*G29 -> 3500
D30: (from Indeck) | J30: TOTAL = | K30: =I28+H29 -> 13790.2
B31: Purchased Equipment and Material Cost (PEMC) | J31: PEMC = | K31: =K14+K18+K21+K25+K30 -> 697131.8
B33: Direct Installation Costs (DIC) | J33: DIC = | K33: =272758*(1.25) -> 340947.5
B36: Total Direct Costs (TDC) | J36: TDC = (PEMC) + (DIC) = | K36: =+K31+K33 -> 1038079.3
B39: INDIRECT COSTS
B40: (2) | C40: Engineering, Procurement & Construction Support Services | E40: 0.1 | F40: % TDC | I40: =E40*K36 -> 103807.93
B41: (3) | C41: Performance tests for NOX emissions | E41: 1 | F41: EA | G41: 10000 | I41: =G41*E41 -> 10000 | K41: Excluded in this estimate.
B42: Total Indirect Costs (TIC) | J42: TIC = | K42: =SUM(I40:I41) -> 113807.93
B45: MANAGEMENT AND CONTINGENCY COSTS
B46: (4) | C46: Unit Operator Costs | F46: % TDC | K46: Excluded in this estimate.
B47: (5) | C47: Contingency | E47: 0.1 | F47: % TDC | I47: =E47*K36 -> 103807.93
B48: Total Management and Contingency Costs (TM&CC) | J48: TM & CC = | K48: =SUM(I46:I47) -> 103807.93
B51: TOTAL CAPITAL INVESTMENT (TCI) | J51: TCI = (TDC)+(TIC)+(TM&CC) = | K51: =K36+K42+K48 -> 1255695.16

Sheet LNB-FGR CE
B1: Table 3-11. UAF - Annualized Costs for LNB/FGR on
B2: the Mid-sized Diesel Boiler (EU ID 3)
I3: Shaded cells indicate user inputs
B4: Cost Effectiveness Determination - Low NOX Burners & FGR
D5: UAF PM2.5 BACT Analysis - Zurn Boiler #3 (EU ID 3)
B8: Annualized Costs
B9: DIRECT ANNUAL COSTS | E9: QTY | F9: UNIT | G9: UNIT COST | H9: TOTAL MATERIALS COST | I9: TOTAL LABOR COST | K9: TOTAL
B10: (1) | C10: Operating Labor - Not required | F10: MH | I10: =E10*G10 -> 0 | K10: =I10 -> 0
B11: (2) | C11: Supervisory Labor - Not required | F11: MH | I11: =E11*G11 -> 0 | K11: =I11 -> 0
B12: (3) | C12: Maintenance Labor - Not required | F12: MH | I12: =E12*G12 -> 0 | K12: 0
B13: (4) | C13: Maintenance Materials - Not required | F13: LOT | H13: =E13*G13 -> 0 | I13: =E13*G13 -> 0 | K13: =H13 -> 0
B15: Total Direct Annual Costs (TDAC) | J15: TDAC = | K15: =SUM(K10:K13) -> 0
B17: INDIRECT ANNUAL COSTS
B18: (5) | C18: Overhead | F18: MH | H18: Excluded in this estimate. | I18: =E18*G18 -> 0 | K18: =I18 -> 0
B19: (6) | C19: Administrative Charges and Insurance | E19: 0.03 | F19: % total capital | I19: =E19*'LNB-FGR TCI'!K51 -> 37670.8548 | K19: =I19 -> 37670.8548
C20: Capital Recovery Factor [see inputs below] | E20: =($E$35/100*POWER((1+($E$35/100)),$E$36))/((POWER(((1+$E$35/100)),$E$36))-1) -> 0.09439292574
B21: (7) | C21: Capital Recovery | J21: CRF * TCI = | K21: =E20*'LNB-FGR TCI'!K51 -> 118528.74
B23: Total Indirect Annual Costs (TIAC) | J23: TIAC = | K23: =SUM(K18:K21) -> 156199.5948
B25: TOTAL ANNUALIZED COSTS (TAC) | J25: TAC = (TDAC) + (TIAC) = | K25: =K15+K23 -> 156199.5948
B27: Cost Effectiveness Summary
B29: TOTAL TONS AVOIDED PER YEAR | J29: = | K29: =138.8*0.55 -> 76.34
B31: COST EFFECTIVENESS ($ PER TON AVOIDED) | J31: (TAC)/(TPY) = | K31: =K25/K29 -> 2046.104202
D34: Data Inputs for Capital Recovery Factor:
D35: Annual Interest Rate (EPA OAQPS Control Cost Manual) | E35: 7 | F35: %
D36: Project Life (EPA OAQPS Control Cost Manual) | E36: 20 | F36: years
D37: Catalyst Life | E37: N/A | F37: years
D38: Asset Utilization | E38: N/A | F38: %

Sheet 5-22 (hidden)
A1: Table 5-22. Point Thomson Project - Proposed VOC BACT and Associated
A2: Emission Rate for Each Emission Unit Type
A4: Emission Unit | C4: Fuel | D4: CO BACT
A5: ID | B5: Description | D5: Description | E5: Emission Rate
A7: 101 and 102 | B7: ='[1]5-1'!B6 -> Solar Taurus Turbine | C7: Fuel Gas | D7: Catalytic Oxidation | E7: 25 ppm at ≥10 degrees F (in SoLoNOX mode)
A8: 103 and 104 | B8: Solar Taurus Turbine | C8: Dual Fuel-fired | D8: Catalytic Oxidation | E8: 100 ppm at ≥10 degrees F (in SoLoNOX mode)
A9: 105 | B9: Waste Incinerator | C9: ULSD | D9: Good Combustion Practices | E9: 1.0 g/hp-hr
A10: 106 through 109, 115, and 116 | B10: Distillate-fired Engines | C10: ULSD | D10: Good Combustion Practices | E10: 0.19 g/KW-hr
A11: 110 through 112 | B11: Fine Water Mist Supply and Firewater Pumps | C11: ULSD | D11: Good Combustion Practices | E11: 0.00247 lb/hp-hr
A12: 113 and 114 | B12: Flares | C12: Fuel Gas | D12: None | E12: 4.0 g/KW-hr (NOX and HC, combined)
A14: Notes:
A15: 1 Emissions are on a per unit basis.
A16: 2 ULSD fired engines have NSPS Subpart IIII VOC emission limits.
